Cogmind - Beta 9.2 @@@ ROGUE MODE // 2019.12.10 @ 15:52:20 Player: SHADOWELITE7 Result: Destroyed by G-34 Mercenary with Small Laser Performance ------------- Evolutions (1) 500 Regions Visited (3) 600 Robots Destroyed (32) 160 Value Destroyed (762) 762 Prototype IDs (2) 40 Alien Tech Used (0) 0 Bonus (0) 0 TOTAL SCORE: 2062 Bonus ------- None Cogmind --------- Core Integrity 0/400 Matter 213/300 Energy 100/100 System Corruption 0% Temperature Cool (6) Movement Core (550) Ox10 Location -9/Materials Parts ------- > --- POWER (2) -------- (None) > --- PROPULSION (2) --- (None) > --- UTILITY (2) ------ Large Storage Unit Large Storage Unit > --- WEAPON (3) ------- (None) > --- INVENTORY (16) --- Ion Engine Improved Heat Sink Tractor Beam Peak State ------------ > --- POWER ------------ Ion Engine > --- PROPULSION ------- Light Treads > --- UTILITY ---------- Large Storage Unit Large Storage Unit > --- WEAPON ----------- Small Laser Rocket Launcher Mini Grenade Launcher > --- INVENTORY -------- Ion Engine Improved Heat Sink Tractor Beam [Rating: 9] Favorites ----------- Power Ion Engine Engine Ion Engine Propulsion Light Treads Treads Light Treads Utility Large Storage Unit Storage Large Storage Unit Weapon Assault Rifle Energy Gun Small Laser Energy Cannon Advanced Beam Cannon Ballistic Gun Assault Rifle Launcher Rocket Launcher Build | -11 -10 -10 -9 ------- Run | Scr Mat Min Mat Slots Evolved 2 | . . . 2 Power 1 | . . . 1 Propulsion . | . . . . Utility . | . . . . Weapon 1 | . . . 1 Parts Attached 15 | 6 4 1 4 Power 1 | 1 . . . Engine 1 | 1 . . . Core . | . . . . Reactor . | . . . . Propulsion 2 | 2 . . . Treads 2 | 2 . . . Leg . | . . . . Wheel . | . . . . Hover . | . . . . Flight . | . . . . Utility 4 | 1 3 . . Device . | . . . . Storage 4 | 1 3 . . Processor . | . . . . Hackware . | . . . . Protection . | . . . . Artifact . | . . . . Weapon 8 | 2 1 1 4 Energy Gun 3 | 1 . . 2 Energy Cannon 1 | . . . 1 Ballistic Gun 2 | 1 1 . . Ballistic Cannon . | . . . . Launcher 2 | . . 1 1 Special Weapon . | . . . . Impact Weapon . | . . . . Slashing Weapon . | . . . . Piercing Weapon . | . . . . Special Melee Weapon . | . . . . Unidentified Prototypes 2 | . . . 2 Parts Lost 7 | . . 1 6 Power 1 | . . . 1 Propulsion 2 | . . 1 1 Utility . | . . . . Weapon 4 | . . . 4 Highest Loss Streak 2 | . . 1 2 Average Slot Usage (%) 78 | . 98 90 52 Engine 11 | . 14 14 7 Treads 15 | . 28 18 3 Storage 25 | . 27 28 22 Energy Gun 3 | . 8 . 3 Ballistic Gun 12 | . 19 18 1 Launcher 8 | . . 9 14 Naked Turns . | . . . . Heaviest Build 43 | 12 41 43 43 Greatest Support 40 | 40 40 40 20 Greatest Overweight (x) 13 | . 1 2 13 Average Overweight (x) 1 | . . 1 6 Largest Inventory Capacity 16 | 6 16 16 16 Average Capacity 13 | 5 9 16 16 Most Carried 6 | 3 6 5 6 Average Carried 3 | 1 2 4 3 Final Capacity 16 | 6 16 16 16 Final Carried 5 | 2 3 5 3 Class Distribution -------------------- 100% | Mutant Dominant Class ---------------- Mutant | -10/Materials Mutant | -10/Mines Mutant | -9/Materials Resources | -11 -10 -10 -9 ----------- Run | Scr Mat Min Mat Matter Collected 690 | 242 163 155 130 Remotely . | . . . . Salvage Created 827 | . 213 226 388 Parts 61 | . 12 18 31 Haulers Intercepted 1 | . . . 1 Recyclers Shooed . | . . . . Parts Field Recycled . | . . . . Retrieved Matter . | . . . . Parts Self-Destructed . | . . . . Prevented . | . . . . Kills | -11 -10 -10 -9 ------- Run | Scr Mat Min Mat Combat Hostiles Destroyed 25 | . 4 11 10 Guns 7 | . 4 3 . AOE 18 | . . 8 10 Classes Destroyed 8 | . 2 2 4 Worker 1 | . . . 1 Builder 2 | . 1 . 1 Hauler 1 | . . . 1 Recycler 2 | . . . 2 Mechanic 1 | . . 1 . Swarmer 9 | . . 6 3 Grunt 15 | . 4 5 6 Sentry 1 | . . . 1 Best Kill Streak 6 | . 4 4 6 Combat Bots Only 5 | . 3 3 5 Max Kills in Single Turn 4 | . 1 3 4 Gunslinging . | . . . . Exploded 3 | . . 3 2 Melee . | . . . . Uniques/NPCs Destroyed . | . . . . Combat | -11 -10 -10 -9 -------- Run | Scr Mat Min Mat Damage Taken 1639 | . 457 296 886 Core 615 | . 143 72 400 Absorbed by Shields . | . . . . Core Remaining (%) 57 | 100 . 14 . Volleys Fired 52 | . 20 10 22 Largest 3 | . 2 2 3 Hottest 113 | . 60 53 113 Shots Fired 93 | . 40 20 33 Gun 60 | . 40 15 5 Cannon 8 | . . . 8 Launcher 25 | . . 5 20 Special . | . . . . Kinetic 40 | . 25 15 . Thermal 25 | . 15 . 10 Explosive 25 | . . 5 20 Electromagnetic 3 | . . . 3 Robot Hit Streak 10 | . 10 7 7 Robot Miss Streak 3 | . 3 1 2 Penetration Max . | . . . . Secondary Targets 2 | . 2 . . Max Gunslinging Chain 1 | . 1 . . Shots Hit Robots 63 | . 28 15 20 Core Hits 52 | . 10 18 24 Critical Hits 2 | . . . 2 Critical Kills . | . . . . Critical Parts Destroyed 2 | . . . 2 Melee Attacks . | . . . . Impact . | . . . . Slashing . | . . . . Piercing . | . . . . Sneak Attacks . | . . . . Combat Hostiles . | . . . . Follow-up Attacks . | . . . . Damage Inflicted 2046 | . 294 697 1055 Guns 499 | . 294 159 46 Cannons 84 | . . . 84 Explosions 1463 | . . 538 925 Melee . | . . . . Ramming . | . . . . Kinetic 333 | . 174 159 . Thermal 214 | . 120 . 94 Explosive 1463 | . . 538 925 Electromagnetic 36 | . . . 36 Impact . | . . . . Slashing . | . . . . Piercing . | . . . . Highest Corruption . | . . . . Average Corruption . | . . . . Corruption Purged . | . . . . Overload Shots . | . . . . Overflow Damage 63 | . . 7 56 Projectiles . | . . . . Explosions 63 | . . 7 56 Melee . | . . . . Knockbacks . | . . . . Impact . | . . . . Kinetic . | . . . . Secondary . | . . . . Self-Inflicted Damage 98 | . . 98 . Shots 4 | . . 4 . Rammed . | . . . . Targets Rammed . | . . . . Kicked . | . . . . Crushed . | . . . . Highest Temperature 157 | . 157 15 111 Average Temperature 56 | . 78 8 37 Received Heat Transfer 789 | . 255 84 450 Siege Activations . | . . . . Robots Corrupted . | . . . . Combat Hostiles . | . . . . Parts Fried . | . . . . Impact Corruptions . | . . . . Robots Melted . | . . . . Combat Hostiles . | . . . . Parts Melted . | . . . . Heat Transferred 448 | . 275 . 173 Parts Sabotaged . | . . . . Parts Stolen . | . . . . Parts Stripped . | . . . . Power Chain Reactions . | . . . . Missiles Intercepted . | . . . . Alert | -11 -10 -10 -9 ------- Run | Scr Mat Min Mat Peak Influence 328 | . 149 252 328 Average Influence 112 | . 55 139 143 Maximum Alert Level 1 | . . 1 1 Low Security (%) 90 | 100 100 93 80 Level 1 9 | . . 6 19 Level 2 . | . . . . Level 3 . | . . . . Level 4 . | . . . . Level 5 . | . . . . High Security . | . . . . Max Security . | . . . . Squads Dispatched 5 | . 2 1 2 Investigation . | . . . . Extermination . | . . . . Reinforcement 4 | . 2 . 2 Assault 1 | . . 1 . Garrison . | . . . . Intercept . | . . . . Construction Impeded 1 | . . . 1 Haulers Reinforced . | . . . . Stealth | -11 -10 -10 -9 --------- Run | Scr Mat Min Mat Distress Signals 2 | . 2 . . Communications Jammed . | . . . . Distress Signals . | . . . . Times Spotted 38 | . 11 12 15 Peak Tracking Total 5 | . 5 3 5 Tactical Retreats 3 | . 1 . 2 Traps | -11 -10 -10 -9 ------- Run | Scr Mat Min Mat Traps Triggered . | . . . . Indirectly . | . . . . Trap Hack Attempts . | . . . . Triggered . | . . . . Disarmed . | . . . . Reprogrammed . | . . . . Reused . | . . . . Traps Extracted . | . . . . Installed . | . . . . Triggered . | . . . . Machines | -11 -10 -10 -9 ---------- Run | Scr Mat Min Mat Machines Disabled 4 | . . 1 3 Max in Single Turn 1 | . . 1 1 Machines Sabotaged . | . . . . Garrisons Compromised . | . . . . Overloaded Fab Kills . | . . . . Fab Network Shutdowns . | . . . . Hacking | -11 -10 -10 -9 --------- Run | Scr Mat Min Mat Machines Accessed 2 | . 2 . . Terminals 2 | . 2 . . Fabricators . | . . . . Repair Stations . | . . . . Recycling Units . | . . . . Scanalyzers . | . . . . Garrison Access . | . . . . Total Hacks 5 | . 5 . . Successful 3 | . 3 . . Failed 2 | . 2 . . Catastrophic 1 | . 1 . . Database Lockouts . | . . . . Manual . | . . . . Terminals 5 | . 5 . . Fabricators . | . . . . Repair Stations . | . . . . Recycling Units . | . . . . Scanalyzers . | . . . . Garrison Access . | . . . . Terminal Hacks 3 | . 3 . . Dispatch Records 1 | . 1 . . Patrol Status 1 | . 1 . . Reinforcement Status 1 | . 1 . . Fabricator Hacks . | . . . . Repair Station Hacks . | . . . . Recycling Unit Hacks . | . . . . Scanalyzer . | . . . . Garrison Access Hacks . | . . . . Unauthorized Hacks . | . . . . Terminals . | . . . . Fabricators . | . . . . Repair Stations . | . . . . Recycling Units . | . . . . Scanalyzers . | . . . . Garrison Access . | . . . . Data Cores Recovered . | . . . . Used . | . . . . Hacking Detections 2 | . 2 . . Full Trace Events . | . . . . Feedback Events . | . . . . Feedback Blocked . | . . . . Robot Schematics Acquired . | . . . . Robots Built . | . . . . Matter . | . . . . Time . | . . . . Total Robot Build Rating . | . . . . Part Schematics Acquired . | . . . . Parts Built . | . . . . Matter . | . . . . Time . | . . . . Total Part Build Rating . | . . . . Parts Repaired . | . . . . Time . | . . . . Parts Recycled . | . . . . Recycled Matter . | . . . . Retrieved Matter . | . . . . Retrieved Components . | . . . . Parts Scanalyzed . | . . . . Part Schematics Acquired . | . . . . Parts Damaged . | . . . . Bothacking | -11 -10 -10 -9 ------------ Run | Scr Mat Min Mat Used RIF Installer . | . . . . Robots Hacked . | . . . . Non-combat . | . . . . Combat . | . . . . Robot Hacks Applied . | . . . . Relay Couplers Released . | . . . . Robots Rewired . | . . . . Allies Hacked . | . . . . Hacks Repelled . | . . . . Allies | -11 -10 -10 -9 -------- Run | Scr Mat Min Mat Total Allies 1 | . . 1 . Largest Group 1 | . . 1 . Highest-Rated Group 31 | . . 31 . Highest-Rated Ally 31 | . . 31 . Total Orders . | . . . . Ally Attacks 5 | . . 5 . Total Damage 102 | . . 102 . Kills . | . . . . Allies Corrupted . | . . . . Allies Melted . | . . . . Intel | -11 -10 -10 -9 ------- Run | Scr Mat Min Mat Robot Analysis Total . | . . . . Derelict Logs Recovered 1 | . . 1 . Drone Launches . | . . . . Drone Recoveries . | . . . . Exploration | -11 -10 -10 -9 ------------- Run | Scr Mat Min Mat Turns Passed 1445 | 71 374 479 521 Spaces Moved 562 | 39 181 232 110 Core 48 | 4 . . 44 Treads 514 | 35 181 232 66 Legs . | . . . . Wheels . | . . . . Hover . | . . . . Flight . | . . . . Fastest Speed 50 | 50 160 180 200 Average Speed 218 | 148 167 192 382 Slowest Speed 700 | 160 180 200 700 Overloaded Moves . | . . . . Propulsion Burnouts . | . . . . Robots Hopped . | . . . . Cave-ins Triggered . | . . . . Exploration Rate (%) 22 | 3 35 40 13 Regions Visited 3 Branch Regions 1 Pre-discovered Areas . | . . . . Known Exits Taken . | . . . . Unknown Exits Taken 3 | 1 1 1 . Scrap Searched 2 | . . 2 . Spaces Dug . | . . . . Terrain Destroyed 166 | . . 57 109 Melee . | . . . . Projectile . | . . . . AOE 166 | . . 57 109 Actions | -11 -10 -10 -9 --------- Run | Scr Mat Min Mat Total 689 | 52 214 244 179 Wait 37 | . . . 37 Move 559 | 38 180 231 110 Hop . | . . . . Pick Up 20 | 8 7 2 3 Fast Attach . | . . . . Attach 14 | 6 4 . 4 Detach . | . . . . Swap 1 | . . 1 . Drop 6 | . 3 . 3 Fire 52 | . 20 10 22 Melee . | . . . . Ram . | . . . . Kick . | . . . . Crush . | . . . . Escape Stasis . | . . . . Rewire . | . . . . Trap . | . . . . Miscellaneous . | . . . . Route ------- -11/Scrapyard -10/Materials -10/Mines -9/Materials History --------- Turn | Location | Event 5 | -11/Scrapyard | Discovered new exit (range 15) 72 | -11/Scrapyard | Entered Materials 277 | -10/Materials | Core integrity fell below 50% 332 | -10/Materials | Build established: Mutant 430 | -10/Materials | Discovered new exit (range 9) 446 | -10/Materials | Entered Mines 453 | -10/Mines | Received a Rocket Launcher from a helpful Derelict 825 | -10/Mines | Discovered new exit (range 11) 828 | -10/Mines | Met a Derelict testing a Signal Generator 859 | -10/Mines | Core integrity fell below 20% 925 | -10/Mines | Entered Materials 925 | -9/Materials | Evolved 2 slots: Power x1, Weapon x1 1332 | -9/Materials | Core integrity fell below 50% 1427 | -9/Materials | Core integrity fell below 20% 1446 | -9/Materials | Destroyed by G-34 Mercenary with Small Laser Last Messages --------------- 01407_ K-01 Serf collects debris. 01407_ U-05 Engineer lays Concrete. 01408_ R-06 Scavenger inserts Aluminum Leg into recycling unit. 01409_ Recycling unit begins recycling process. 01409_ U-05 Engineer lays Concrete. 01411_ K-01 Serf collects debris. 01411_ R-06 Scavenger inserts Heat Sink into recycling unit. 01411_ K-01 Serf collects debris. 01411_ R-06 Scavenger collects Mni. Grenade Launcher. 01414_ K-01 Serf collects debris. 01414_ R-06 Scavenger inserts Wheel into recycling unit. 01415_ Recycling unit begins recycling process. 01415_ K-01 Serf collects debris. 01416_ R-06 Scavenger collects Lgt. Ion Engine. 01418_ K-01 Serf collects debris. 01419_ R-06 Scavenger collects Lgt. Treads. 01422_ K-01 Serf collects debris. 01423_ U-05 Engineer lays Concrete. 01432_ Imp. EM Shotgun destroyed. 01444_ G-34 Mercenary IFF system glitched. Map ----- +----------------------------------------------------+ | ?????????????????????????????????????????????????? | | ?????????????????????????????????????????????????? | | ?????????????????????????????????????????????????? | | ?????????????????????????????????????????????????? | | ?????????????????????????????????????????????????? | | ?????????????????????????????????????????????????? | | ?????????????????????????????????????????????????? | | ?????????????????????????????????????????????????? | | ?????????????????????????????????????????????????? | | ???????????????????????? ??????????????????????? | | ???????????????????????? ??????????????????????? | | ???????????????????????? ??????????????????????? | | ???????????????????????# #?????????????????????? | | ???????????????????????# #?????????????????????? | | ?????????????????? ???# #?????????????????????? | | ????????????? ???" #??# #?????????????????????? | | ????????????# ??" #??# #?????????????????????? | | ????????????# """ #??# ###???????????????????? | | ????????????# """ #??# ???????????????????? | | ????????????+ " #??# ????????????????????? | | ????????????# #??# ?????????????????????? | | ????????????# #??# r#?????????????????????? | | ????????????# #??# #?###?????????????????? | | ????????????# #### g# ##########????????? | | ????????????# # # # ?????????? | | ????????????# k @%# """????????????? | | ???####??#??# % += """????????????? | | ???? ?? ?# u #] """ #????????? | | ????""" ?#"" g % #] ?????????? | | ###?""" #"Y # ###+########????????? | | #?""" [ #"" u #####?#???????????????? | | #?""" + [ # #?????????????????? | | ## # u % ""??????????????? | | ## ????# ######## % ^ "Y??????????????? | | ##?? ???# # # " "?????????????? | | ????? # #"S ###### ?????????????? | | ############# # " #! # ????????????? | | #! # """ # ???????????? | | + # """ +? ???????????? | | % # " # """ #?? ????????????? | | +###### """ ### "" # ?? #??? ????????????? | | ## """ # # " # ??????? ??????????????? | | "" ## """ # # #####?????????????????????? | | "" ## ### " #?????????????????????????? | | "" ## # # " #?????????????????????????? | | ## """ ### #?????????????????????????? | | "" ## """ *# # #?????????????????????????? | | "" ## """ # ## ###?????????????????????????? | | "" ## # ## ???????????????????????????? | | ## # # ### ???????????????????????????? | +----------------------------------------------------+ Best States ------------- Heat Dissipation 28 Energy Generation 10 Energy Capacity 250 Matter Stores 390 Matter Capacity 400 Sight Range 16 Terrain Scan Density 10 Evasion (%) 40 Recoil Reduction 2 Item Schematics ----------------- None Robot Schematics ------------------ None Fabricated ------------ Nothing Alien Tech Used ----------------- None Achievements -------------- None Challenges ------------ None Game ------ Seed SwarmTeslaRailgun Manual? 0 Play Time 00:13:18 Cumulative 16.0 hours Start 2019.12.10 @ 15:34:14 End 2019.12.10 @ 15:52:20 Sessions 1 Manual Loads 0 Difficulty Rogue Special Mode None Game No. 67 Rogue 63 Adventurer 0 Explorer 4 Win Type - Total 0 Types 0/0/0/0/0/0/0 Lore% 20 Gallery% 16 Achievement% 16 Wizard Run 0 Options --------- ASCII 0 Keyboard 0 Movement Arrows Keybinds 0 Fullscreen 1 Font 18/SmallcapsGlow Map View 76x50 Tactical HUD 1 Map Filters NONE Filters NONE Steam 1 RUN: 258c9912-ef58-4c61-90e7-76a32987c48d